fUST/lending_fUST_20260415
["ID","MTS","AMOUNT","RATE_DAILY","PERIOD"]
[420510475,1776189040169,-1118.00388856,8.725e-05,2]
[420510476,1776189040186,-3454.16983772,8.725e-05,2]
[420510477,1776189040212,-1968.25670255,8.725e-05,2]
[420510508,1776189256526,17100.12132262,0.00027396,120]
[420510511,1776189662641,-2943.11123075,7.976e-05,5]
[420510512,1776189662654,-2056.88876925,7.976e-05,5]
[420510513,1776189702601,-1083.52595459,7.976e-05,2]
[420510514,1776189702819,-776.05932157,7.976e-05,2]
[420510515,1776189702839,-1083.52595459,8.057e-05,2]
[420510516,1776189876535,10389.6,0.00027,120]
[420510517,1776189915603,5000.0,5e-05,5]
[420510518,1776189937530,1859.58527616,5e-05,5]
[420510519,1776189938475,-414.48375,5e-05,2]
[420510520,1776190031126,242.4419525,0.00018553,120]
[420510521,1776190152339,-85.51625,5e-05,2]
[420510522,1776190152376,-723.2584,5e-05,2]
[420510523,1776190152413,-260.13294527,5.125e-05,2]
[420510524,1776190152447,-361.6292,5.25e-05,2]
[420510525,1776190152471,-129.69020067,7.125e-05,2]
[420510615,1776190239085,-177.26667474,7.125e-05,2]
[420510616,1776190239097,-521.0,7.125e-05,2]
[420510617,1776190239110,-5.95334726,7.545e-05,2]
[420510618,1776190239303,-485.83690333,7.545e-05,2]
[420510619,1776190239325,-504.97665992,7.545e-05,2]
[420510631,1776190243973,-1462.18434243,7.545e-05,2]
[420510632,1776190243998,-4421.68614303,7.545e-05,2]
[420510633,1776190244018,-500.0,7.599e-05,2]
[420510634,1776190244035,-500.0,7.599e-05,2]
[420510635,1776190244055,-500.0,7.599e-05,2]
[420510636,1776190244065,-500.0,7.599e-05,2]
[420510637,1776190244074,-500.0,7.599e-05,2]
[420510638,1776190244085,-500.0,7.599e-05,2]
[420510639,1776190244094,-597.60071226,7.599e-05,2]
[420510640,1776190244104,-500.0,7.599e-05,2]
[420510641,1776190244114,-500.0,7.599e-05,2]
[420510642,1776190244123,-500.0,7.599e-05,2]
[420510643,1776190244133,-300.0,7.599e-05,2]
[420510644,1776190244142,-500.0,7.599e-05,2]
[420510645,1776190244151,-500.0,7.599e-05,2]
[420510646,1776190244161,-380.74046185,7.599e-05,2]
[420510647,1776190244170,-419.47925888,7.599e-05,2]
[420510648,1776190244180,-500.0,7.599e-05,2]
[420510649,1776190244190,-6843.20591624,7.6e-05,2]
[420510652,1776190244202,-287.41003066,7.6e-05,2]
[420510654,1776190244214,-500.0,7.6e-05,2]
[420510667,1776190246792,-11190.23796712,7.6e-05,2]
[420510668,1776190246833,-1015.89429314,7.6e-05,2]
[420510688,1776190287778,1190.27,0.00027397,120]
[420510691,1776191363213,-300.0,3.549e-05,2]
[420510692,1776191363332,-248.79114885,3.55e-05,2]
[420510693,1776191363466,-1200.0,3.55e-05,2]
[420510694,1776191363523,-7963.5802,3.55e-05,2]
[420510695,1776191363558,-165.9310495,3.552e-05,2]
[420510696,1776191363592,-3981.7901,3.728e-05,2]
[420510697,1776191363622,-200.0,3.955e-05,2]
[420510698,1776191363651,-1007.34674165,4.082e-05,2]
[420510738,1776191438219,-319.91655835,4.082e-05,2]
[420510739,1776191438341,-293.57355565,5.55e-05,2]
[420510741,1776191438378,-414.05878597,7.031e-05,2]
[420510743,1776191438439,-714.9155744,7.031e-05,2]
[420510745,1776191438518,-428.20299479,7.031e-05,2]
[420510747,1776191438593,-401.02914106,7.168e-05,2]
[420510749,1776191438711,-1081.56634095,7.168e-05,2]
[420510751,1776191438783,-520.94610674,7.168e-05,2]
[420510753,1776191438794,-389.29433879,7.168e-05,2]
[420510755,1776191438813,-3500.14540007,7.454e-05,2]
[420510757,1776191438831,-338.35596244,7.55e-05,2]
[420510760,1776191438852,-500.0,7.599e-05,2]
[420510761,1776191438869,-500.0,7.599e-05,2]
[420510763,1776191438881,-467.14269883,7.599e-05,2]
[420510765,1776191438898,-500.0,7.599e-05,2]
[420510767,1776191438911,-500.0,7.599e-05,2]
[420510769,1776191438921,-500.0,7.599e-05,2]
[420510771,1776191438934,-643.63548121,7.599e-05,2]
[420510772,1776191438945,-29820.67878505,7.6e-05,2]
[420510774,1776191438957,-2214.0,7.6e-05,2]
[420510776,1776191438974,-13813.9922726,7.6e-05,2]
[420510788,1776191440446,-16015.54180994,7.6e-05,2]
[420510800,1776191443376,-1357.39668019,7.6e-05,2]
[420510801,1776191443420,-7807.39126634,7.6e-05,2]
[420510802,1776191443497,-8008.41106366,7.6e-05,2]
[420510809,1776191446547,-2238.6,7.6e-05,2]
[420510845,1776191462080,-1034.5079084,7.6e-05,2]
[420510846,1776191585067,150.9,2e-05,2]
[420510849,1776192390866,-1003.44975964,3.523e-05,2]
[420510850,1776192390901,-5000.0,3.559e-05,2]
[420510851,1776192390934,-267.23190006,3.577e-05,2]
[420510852,1776192390966,-300.0,3.629e-05,2]
[420510853,1776192390995,-257.0,3.63e-05,2]
[420510854,1776192391021,-285.0,3.63e-05,2]
[420510855,1776192391050,-1200.0,3.63e-05,2]
[420510856,1776192391076,-183.0852,3.631e-05,2]
[420510857,1776192391102,-1770.04666583,3.669e-05,2]
[420510863,1776192632143,-551.20098473,3.596e-05,2]
[420510919,1776192640563,-4448.79901527,3.596e-05,2]
[420510920,1776192640594,-261.88726206,3.614e-05,2]
[420510921,1776192640610,-300.0,3.631e-05,2]
[420510922,1776192640626,-29.0660599,3.631e-05,2]
[420510923,1776192640660,-450.9339401,3.631e-05,2]
[420510924,1776192640681,-305.88037929,3.632e-05,2]
[420510930,1776192641327,-742.75890876,3.632e-05,2]
[420510931,1776192641357,-1363.08243599,3.632e-05,2]
[420510944,1776192643706,-1140.64300447,3.632e-05,2]
[420510945,1776192643739,-521.61505668,3.632e-05,2]
[420510953,1776192646337,-842.0,3.632e-05,2]
[420510954,1776192646355,-12777.83001481,3.632e-05,2]
[420510955,1776192646378,-8846.9049,3.814e-05,2]
[420510956,1776192646389,-2564.46903667,3.82e-05,2]
[420510957,1776192646402,-2948.9683,4.177e-05,2]
[420510958,1776192646416,-4661.8977642,4.976e-05,2]
[420510959,1776192646434,-500.0,5e-05,2]
[420510960,1776192646450,-182.21774351,5e-05,2]
[420510961,1776192646461,-500.0,5e-05,2]
[420510962,1776192646487,-205.15354154,5e-05,2]
[420510963,1776192646502,-500.0,5e-05,2]
[420510964,1776192646516,-500.0,5e-05,2]
[420510965,1776192646545,-341.43270021,5e-05,2]
[420510966,1776192646554,-309.02696923,5.614e-05,2]
[420510967,1776192646631,-1419.1836615,7.123e-05,2]
[420510970,1776192646643,-476.6905182,7.123e-05,2]
[420510971,1776192646655,-6454.2200126,7.123e-05,2]
[420510973,1776192646678,-3795.9990754,7.123e-05,2]
[420510974,1776192646719,-151.0,7.123e-05,2]
[420510975,1776192646746,-155.34997501,7.168e-05,2]
[420510976,1776192646792,-660.448973,7.506e-05,2]
[420510977,1776192646870,-20341.85536081,7.6e-05,2]
[420510978,1776192646881,-151.0,7.6e-05,2]
[420510979,1776192646922,-356.16667641,7.614e-05,2]
[420510980,1776192646935,-660.448973,7.822e-05,2]
[420510981,1776192646958,-500.0,7.855e-05,2]
[420510982,1776192646971,-500.0,7.856e-05,2]
[420510983,1776192647002,-444.60019771,7.856e-05,2]
[420510984,1776192647013,-500.0,7.856e-05,2]
[420510985,1776192647027,-500.0,7.856e-05,2]
[420510986,1776192647046,-393.39317028,7.856e-05,2]
[420510987,1776192647098,-106.60682972,7.856e-05,2]
[420510988,1776192647144,-500.0,7.856e-05,2]
[420510989,1776192647162,-500.0,7.856e-05,2]
[420510990,1776192647312,-500.0,7.856e-05,2]
[420510991,1776192647436,-500.0,7.856e-05,2]
[420510992,1776192647481,-500.0,7.856e-05,2]
[420510993,1776192647588,-500.0,7.856e-05,2]
[420510994,1776192647860,-500.0,7.856e-05,2]
[420510995,1776192647870,-560.03594959,7.856e-05,2]
[420510996,1776192647894,-500.0,7.856e-05,2]
[420510997,1776192647905,-250.0,7.856e-05,2]
[420510998,1776192647916,-500.0,7.856e-05,2]
[420510999,1776192647944,-7118.86271182,7.857e-05,2]
[420511000,1776192647961,-310.35409388,7.857e-05,2]
[420511001,1776192648001,-1219.91665635,7.857e-05,2]
[420511002,1776192784035,3223.0,0.00027397,120]
[420511003,1776192838868,5000.0,5e-05,5]
[420511004,1776192860867,5000.0,5e-05,5]
[420511005,1776193224601,-3201.80665867,2.295e-05,2]
[420511006,1776193230264,144240.0,0.00027397,120]
[420511007,1776193264215,358.14578925,5e-05,5]
[420511008,1776193538377,-166.73591,2.227e-05,2]
[420511009,1776193538502,-166.73591,2.227e-05,2]
[420511015,1776193594185,-51.49569699,0.00018141,60]
[420511016,1776193594222,-190.94625551,0.00018141,60]
[420511017,1776193594231,-51.49569699,0.00018204,60]
[420511018,1776193594598,-48.89285766,0.00018204,60]
[420511019,1776193594800,-77.21428468,0.00018204,60]
[420511020,1776193594822,-48.89285766,0.00018347,60]
[420511021,1776193595228,-23.98537636,0.00018347,60]
[420511022,1776193595698,-169.56371848,0.00018347,60]
[420511023,1776193595848,-23.98537636,0.00018497,60]
[420511024,1776193640869,-217.5344712,0.00018497,60]
[420511025,1776193642623,-52.41780193,0.00018497,60]
[420511026,1776193693030,-217.5344712,0.00019064,60]
[420511027,1776193693404,-282.4655288,0.0002,60]
[420511028,1776193735220,-21.34256381,0.0002,60]
[420511029,1776193735299,-4957.31487238,0.00024,60]
[420511030,1776193754751,1000.0,0.00027397,120]
[420511031,1776193762349,1000.0,0.00027397,120]
[420511032,1776193766553,1000.0,0.00027397,120]
[420511033,1776193772289,1027.0,0.00027397,120]
[420511034,1776193821671,3201.80665867,5e-05,10]
[420511044,1776193833209,-323.28824259,2.183e-05,2]
[420511085,1776193837474,5000.0,5e-05,10]
[420511102,1776193840809,-257.99486026,2.238e-05,2]
[420511103,1776193840820,-1057.1352,2.249e-05,2]
[420511104,1776193840830,-300.0,2.271e-05,2]
[420511105,1776193840844,-300.0,2.293e-05,2]
[420511106,1776193840859,-300.0,2.293e-05,2]
[420511107,1776193840868,-300.0,2.293e-05,2]
[420511108,1776193840878,-300.0,2.293e-05,2]
[420511109,1776193840897,-300.0,2.293e-05,2]
[420511110,1776193840906,-300.0,2.293e-05,2]
[420511111,1776193840915,-300.0,2.293e-05,2]
[420511112,1776193840931,-300.0,2.293e-05,2]
[420511113,1776193840946,-300.0,2.293e-05,2]
[420511114,1776193840956,-300.0,2.293e-05,2]
[420511115,1776193840966,-300.0,2.293e-05,2]
[420511116,1776193840982,-300.0,2.293e-05,2]
[420511117,1776193840994,-300.0,2.293e-05,2]
[420511118,1776193841003,-300.0,2.293e-05,2]
[420511119,1776193841025,-300.0,2.293e-05,2]
[420511120,1776193841040,-313.06424459,2.3e-05,2]
[420511121,1776193841057,-500.0,2.3e-05,2]
[420511122,1776193841069,-503.44748337,2.3e-05,2]
[420511123,1776193841085,-500.0,2.3e-05,2]
[420511124,1776193841103,-500.0,2.3e-05,2]
[420511125,1776193841113,-265.69895429,2.3e-05,2]
[420511126,1776193841127,-234.9146271,2.3e-05,2]
[420511127,1776193841145,-514.57875484,2.3e-05,2]
[420511128,1776193841155,-500.28902842,2.3e-05,2]
[420511129,1776193841171,-501.71722143,2.3e-05,2]
[420511130,1776193841189,-500.0,2.3e-05,2]
[420511131,1776193841199,-165.931047,2.318e-05,2]
[420511132,1776193841216,-528.5676,2.361e-05,2]
[420511133,1776193841233,-420.0,2.498e-05,2]
[420511134,1776193841246,-176.1892,2.586e-05,2]
[420511135,1776193841265,-180.0,2.748e-05,2]
[420511136,1776193841287,-1000.0,2.848e-05,2]
[420511137,1776193841306,-1000.0,2.848e-05,2]
[420511138,1776193841317,-719.21945236,2.848e-05,2]
[420511139,1776193841343,-1000.0,2.848e-05,2]
[420511140,1776193841358,-563.33169773,3.396e-05,2]
[420511141,1776193841369,-1500.0,3.396e-05,2]
[420511142,1776193841397,-1500.0,3.396e-05,2]
[420511143,1776193841406,-600.0,3.739e-05,2]
[420511144,1776193841419,-2000.0,3.944e-05,2]
[420511145,1776193841442,-720.0,4.113e-05,2]
[420511146,1776193841452,-9405.449963,4.185e-05,2]
[420511147,1776193841462,-304.43393511,4.238e-05,2]
[420511148,1776193841480,-2500.0,4.492e-05,2]
[420511149,1776193841490,-864.0,4.525e-05,2]
[420511150,1776193841500,-165.931047,4.636e-05,2]
[420511151,1776193841518,-1000.0,4.977e-05,2]
[420511152,1776193841531,-500.0,5e-05,2]
[420511153,1776193841540,-500.0,5e-05,2]
[420511154,1776193841564,-190.8928474,5e-05,2]
[420511155,1776193841576,-3000.0,5.04e-05,2]
[420511156,1776193841585,-1000.0,5.475e-05,2]
[420511157,1776193841606,-244.0,5.475e-05,2]
[420511158,1776193841620,-3500.0,5.588e-05,2]
[420511159,1776193841629,-357.5178886,6.02e-05,2]
[420511160,1776193841655,-1000.0,6.022e-05,2]
[420511161,1776193841669,-492.0,6.022e-05,2]
[420511162,1776193841686,-3526.61249694,6.136e-05,2]
[420511216,1776193846802,-250.0,6.136e-05,2]
[420511218,1776193847003,-223.38750306,6.136e-05,2]
[420511219,1776193847022,-350.87300996,6.238e-05,2]
[420511220,1776193847037,-1000.0,6.624e-05,2]
[420511221,1776193847052,-791.0,6.624e-05,2]
[420511222,1776193847068,-4500.0,6.684e-05,2]
[420511223,1776193847081,-357.5178886,6.96e-05,2]
[420511224,1776193847094,-1365.33282913,7.232e-05,2]
[420511225,1776193847110,-3634.66717087,7.232e-05,2]
[420511226,1776193847125,-1000.0,7.287e-05,2]
[420511227,1776193847138,-1000.0,7.287e-05,2]
[420511228,1776193847151,-325.1916262,7.699e-05,2]
[420511229,1776193847161,-5500.0,7.779e-05,2]
[420511230,1776193847182,-500.0,7.856e-05,2]
[420511231,1776193847198,-500.0,7.856e-05,2]
[420511232,1776193847218,-500.0,7.856e-05,2]
[420511233,1776193847230,-500.0,7.856e-05,2]
[420511234,1776193847250,-161.2201384,7.856e-05,2]
[420511235,1776193847272,-500.0,7.856e-05,2]
[420511236,1776193847292,-490.44238042,7.856e-05,2]
[420511237,1776193847313,-500.0,7.856e-05,2]
[420511238,1776193847334,-500.0,7.856e-05,2]
[420511239,1776193847354,-500.0,7.856e-05,2]
[420511240,1776193847374,-500.0,7.856e-05,2]
[420511241,1776193847398,-41377.93841242,7.857e-05,2]
[420511242,1776193847428,-357.5178886,7.9e-05,2]
[420511243,1776193847453,-971.06979856,7.901e-05,2]
[420511244,1776193847491,-296.83991972,7.924e-05,2]
[420511245,1776193847518,-1000.0,8.016e-05,2]
[420511246,1776193847543,-1000.0,8.016e-05,2]
[420511247,1776193847563,-579.0,8.016e-05,2]
[420511248,1776193847582,-660.448973,8.138e-05,2]
[420511249,1776193847606,-168.59545468,8.196e-05,2]
[420511250,1776193847622,-500.0,8.219e-05,2]
[420511251,1776193847641,-270.76909686,8.219e-05,2]
[420511252,1776193847657,-500.0,8.219e-05,2]
[420511253,1776193847668,-397.31208481,8.238e-05,2]
[420511254,1776193847685,-6000.0,8.327e-05,2]
[420511255,1776193847703,-194.36672979,8.351e-05,2]
[420511256,1776193847715,-163.83909932,8.351e-05,2]
[420511257,1776193847731,-261.46984455,8.351e-05,2]
[420511258,1776193847740,-971.06979853,8.381e-05,2]
[420511259,1776193847753,-271.18963699,8.383e-05,2]
[420511260,1776193847762,-537.6845,8.383e-05,2]
[420511261,1776193847777,-2150.738,8.383e-05,2]
[420511262,1776193847786,-192.54416271,8.438e-05,2]
[420511263,1776193847798,-660.448973,8.454e-05,2]
[420511264,1776193847807,-500.0,8.493e-05,2]
[420511265,1776193847821,-151.0,8.547e-05,2]
[420511266,1776193847830,-714.77714614,8.761e-05,2]
[420511267,1776193847844,-660.448973,8.77e-05,2]
[420511268,1776193847853,-500.0,8.798e-05,2]
[420511269,1776193847865,-500.0,8.798e-05,2]
[420511270,1776193847875,-500.44868426,8.813e-05,2]
[420511271,1776193847888,-500.0,8.813e-05,2]
[420511272,1776193847897,-203.596297,8.813e-05,2]
[420511273,1776193847909,-1000.0,8.817e-05,2]
[420511274,1776193847922,-754.0,8.817e-05,2]
[420511275,1776193847934,-2178.51805021,8.818e-05,2]
[420511276,1776193847944,-357.5178886,8.841e-05,2]
[420511277,1776193847961,-971.06979853,8.861e-05,2]
[420511278,1776193847975,-975.46527809,8.875e-05,2]
[420511279,1776193847987,-2891.8985404,8.9e-05,2]
[420511280,1776193847997,-4379.23672691,8.918e-05,2]
[420511281,1776193848008,-2230.315306,8.931e-05,2]
[420511282,1776193848021,-660.448973,9.086e-05,2]
[420511283,1776193848035,-576.48731437,9.11e-05,2]
[420511284,1776193848044,-991.0,9.2e-05,2]
[420511285,1776193848055,-971.06979853,9.341e-05,2]
[420511286,1776193848069,-506.13902181,9.346e-05,2]
[420511287,1776193848081,-640.361,9.432e-05,2]
[420511288,1776193848090,-1408.0,9.432e-05,2]
[420511289,1776193848102,-828.92331103,9.432e-05,2]
[420511290,1776193983431,-242.4419525,0.00017935,30]
[420511291,1776193983657,-9272.6741425,0.00018664,30]
[420511292,1776194001354,-10000.0,0.00024,60]
[420511293,1776194031698,-5000.0,0.00024,60]
[420511294,1776194112107,189.0,0.00023256,120]
[420511295,1776194135311,242.4419525,0.00017255,30]
[420511296,1776194406782,234.0,0.00023247,120]
[420511307,1776195033522,-350.17586223,7.321e-05,10]
[420511308,1776195033553,-274.45386978,7.321e-05,10]
[420511309,1776195033605,-4375.37026799,7.321e-05,10]
[420511310,1776195033617,-439.915,7.395e-05,2]
[420511311,1776195033651,-524.0,7.395e-05,2]
[420511312,1776195033668,-231.78258246,7.433e-05,2]
[420511313,1776195033707,-219.9575,7.765e-05,2]
[420511314,1776195033737,-673.7074369,8.635e-05,2]
[420511315,1776195033761,-1186.17231919,8.89e-05,2]
[420511316,1776195033813,-286.555181,9.123e-05,2]
[420511317,1776195033835,-168.49202486,9.204e-05,2]
[420511318,1776195033856,-284.0,9.414e-05,2]
[420511319,1776195033872,-325.255386,9.415e-05,2]
[420511320,1776195033889,-273.5034473,9.433e-05,2]
[420511321,1776195033903,-1606.43694196,9.494e-05,2]
[420511322,1776195033919,-543.34141303,9.5e-05,2]
[420511323,1776195033933,-1281.64500216,9.5e-05,2]
[420511324,1776195033947,-1337.12225877,9.5e-05,2]
[420511325,1776195033961,-286.555181,9.507e-05,2]
[420511326,1776195033972,-160.0,9.545e-05,2]
[420511327,1776195033983,-462.85409688,9.57e-05,2]
[420511328,1776195034000,-500.0,9.57e-05,2]
[420511329,1776195034011,-77.92382544,9.57e-05,2]
[420511330,1776195034046,-422.07617456,9.57e-05,2]
[420511331,1776195034057,-230.65414402,9.57e-05,2]
[420511674,1776195043851,-269.34585598,9.57e-05,2]
[420511675,1776195043863,-202.94567212,9.57e-05,2]
[420511676,1776195043876,-332.94051201,9.57e-05,2]
[420511718,1776195047175,-146.96184996,9.57e-05,2]
[420511720,1776195047187,-500.0,9.57e-05,2]
[420511722,1776195047203,-500.0,9.57e-05,2]
[420511724,1776195047219,-500.0,9.57e-05,2]
[420511726,1776195047228,-500.0,9.57e-05,2]
[420511728,1776195047242,-500.0,9.57e-05,2]
[420511730,1776195047254,-500.0,9.57e-05,2]
[420511732,1776195047266,-500.0,9.57e-05,2]
[420511734,1776195047278,-500.0,9.57e-05,2]
[420511736,1776195047291,-600.0,9.57e-05,2]
[420511738,1776195047301,-7641.61459816,9.571e-05,2]
[420511740,1776195047319,-40414.07056477,9.571e-05,2]
[420511742,1776195047329,-18720.77937966,9.571e-05,2]
[420511928,1776195081432,-2183.31810187,9.475e-05,2]
[420511964,1776196240729,-5000.0,4.185e-05,2]
[420511966,1776196240763,-225.75686187,4.248e-05,2]
[420511968,1776196240781,-166.73591,4.291e-05,2]
[420511970,1776196240795,-266.393097,6.248e-05,2]
[420511971,1776196240807,-307.02933214,8.248e-05,2]
[420511974,1776196240824,-500.0,9.27e-05,2]
[420511975,1776196240835,-180.10033838,9.27e-05,2]
[420511977,1776196240851,-566.85071075,9.27e-05,2]
[420511979,1776196240863,-500.0,9.27e-05,2]
[420511981,1776196240875,-500.0,9.27e-05,2]
[420511983,1776196240889,-500.0,9.27e-05,2]
[420511985,1776196240904,-500.0,9.27e-05,2]
[420511987,1776196240918,-500.0,9.27e-05,2]
[420511988,1776196240929,-500.0,9.27e-05,2]
[420511989,1776196240942,-500.0,9.27e-05,2]
[420511991,1776196240956,-500.0,9.27e-05,2]
[420511993,1776196240965,-595.50144932,9.27e-05,2]
[420511995,1776196240977,-500.0,9.27e-05,2]
[420511997,1776196240991,-500.0,9.27e-05,2]
[420511999,1776196241004,-550.0,9.27e-05,2]
[420512001,1776196241014,-17973.47213677,9.271e-05,2]
[420512003,1776196241029,-643.78105749,9.271e-05,2]
[420512083,1776196246140,-7470.39449217,9.271e-05,2]
[420512091,1776196246558,-81.01193,9.271e-05,2]
[420512093,1776196246582,-91094.86320882,9.271e-05,2]
[420512114,1776196881289,-1615.0,8.816e-05,2]
[420512132,1776197431930,-758.80645586,4.754e-05,2]
[420512136,1776197431988,-4241.19354414,4.754e-05,2]
[420512138,1776197431999,-213.31327604,4.778e-05,2]
[420512140,1776197432018,-577.29925003,4.802e-05,2]
[420512143,1776197432050,-1037.70074997,4.802e-05,2]
[420512145,1776197432062,-500.0,5e-05,2]
[420512146,1776197432079,-251.70966573,6.778e-05,2]
[420512148,1776197432099,-290.10605542,8.778e-05,2]
[420512150,1776197432108,-470.17855238,8.9e-05,2]
[420512152,1776197432127,-1595.9307248,8.976e-05,2]
[420512154,1776197432147,-189.052,8.988e-05,2]
[420512156,1776197432158,-762.651,8.988e-05,2]
[420512158,1776197432179,-651.56496635,9e-05,2]
[420512160,1776197432195,-635.37323974,9e-05,2]
[420512280,1776197446817,-5000.0,8.91e-05,2]
[420512281,1776197446827,-1026.18311586,9e-05,2]
[420512283,1776197446839,-1424.78997802,9e-05,2]
[420512285,1776197446849,-1586.00775225,9e-05,2]
[420512286,1776197446862,-3956.76235934,9e-05,2]
[420512288,1776197446874,-3907.83076669,9e-05,2]
[420512291,1776197446885,-3586.59165361,9e-05,2]
[420512292,1776197446896,-4326.93306518,9e-05,2]
[420512295,1776197446907,-571.93173476,9e-05,2]
[420512298,1776197446926,-1957.856,9.066e-05,2]
[420512301,1776197446936,-396.79549753,9.07e-05,2]
[420512304,1776197446946,-476.07023686,9.07e-05,2]
[420512307,1776197446964,-500.0,9.07e-05,2]
[420512310,1776197446975,-500.0,9.07e-05,2]
[420512313,1776197446984,-500.0,9.07e-05,2]
[420512316,1776197446995,-500.0,9.07e-05,2]
[420512319,1776197447019,-500.0,9.07e-05,2]
[420512321,1776197447032,-500.0,9.07e-05,2]
[420512324,1776197447057,-475.55530436,9.07e-05,2]
[420512325,1776197447070,-500.0,9.07e-05,2]
[420512328,1776197447090,-482001.21676761,9.071e-05,2]
[420512330,1776197447115,-4476.95,9.071e-05,2]
[420512883,1776198641815,-647.84984023,6.567e-05,2]
[420512885,1776198641834,-4352.15015977,6.567e-05,2]
[420512887,1776198641850,-684.1489559,6.633e-05,2]
[420512930,1776198642325,-902.65770277,6.633e-05,2]
[420512933,1776198642335,-1200.0,6.699e-05,2]
[420512936,1776198642344,-5000.0,6.7e-05,2]
[420512938,1776198642354,-515.0,6.7e-05,2]
[420512940,1776198642365,-210.4506961,6.976e-05,2]
[420512942,1776198642374,-333.0,8.219e-05,2]
[420512944,1776198642384,-267.26103055,8.637e-05,2]
[420512946,1776198642393,-257.99283236,8.663e-05,2]
[420512948,1776198642402,-558.84508166,8.7e-05,2]
[420512950,1776198642412,-1383.56087444,8.7e-05,2]
[420512952,1776198642422,-1194.28827857,8.7e-05,2]
[420512954,1776198642431,-351598.58329763,8.771e-05,2]
[420512956,1776198642440,-194.21395973,8.798e-05,2]
[420512958,1776198642449,-484.55201297,8.8e-05,2]
[420512960,1776198642459,-1008.3245036,8.8e-05,2]
[420512962,1776198642469,-194.2139597,8.818e-05,2]
[420512964,1776198642478,-194.2139597,8.837e-05,2]
[420512966,1776198642487,-500.0,8.853e-05,2]
[420512968,1776198642497,-500.0,8.853e-05,2]
[420512970,1776198642506,-500.0,8.853e-05,2]
[420512972,1776198642515,-500.95495457,8.853e-05,2]
[420512974,1776198642525,-500.0,8.853e-05,2]
[420512976,1776198642534,-500.0,8.853e-05,2]
[420512978,1776198642543,-500.0,8.853e-05,2]
[420512981,1776198642552,-500.0,8.853e-05,2]
[420512983,1776198642562,-194.2139597,8.857e-05,2]
[420512985,1776198642571,-186.25233645,8.87e-05,2]
[420512987,1776198642580,-646.499,8.87e-05,2]
[420512989,1776198642589,-155.0,8.87e-05,2]
[420512991,1776198642598,-443463.44076091,8.871e-05,2]
[420513013,1776198642793,-512992.78095087,8.871e-05,2]
[420513016,1776198642803,-653.019462,8.876e-05,2]
[420513018,1776198642813,-194.2139597,8.876e-05,2]
[420513020,1776198642823,-31644.76604569,8.936e-05,2]
[420513022,1776198642834,-155.0,8.97e-05,2]
[420513023,1776198642844,-248.3318214,8.976e-05,2]
[420513025,1776198642853,-600.0,9.046e-05,2]
[420513027,1776198642862,-154.425852,9.054e-05,2]
[420513029,1776198642873,-3907.9349071,9.054e-05,2]
[420513031,1776198642883,-27502.3445866,9.054e-05,2]
[420513033,1776198642893,-1109.9559995,9.054e-05,2]
[420513035,1776198642902,-247.6646599,9.054e-05,2]
[420513037,1776198642912,-500.0,9.056e-05,2]
[420513039,1776198642921,-151.0,9.056e-05,2]
[420513041,1776198642931,-162.380719,9.056e-05,2]
[420513043,1776198642940,-106.31153336,9.056e-05,2]
[420513091,1776198643506,-338.89123264,9.056e-05,2]
[420513092,1776198643518,-303.10151341,9.056e-05,2]
[420513093,1776198643542,-1.92983664,9.056e-05,2]
[420513094,1776198643555,-223.53226523,9.056e-05,2]
[420513095,1776198643566,-537.6845,9.056e-05,2]
[420513096,1776198643575,-216.92055586,9.056e-05,2]
[420513097,1776198643594,-1782.89478354,9.056e-05,2]
[420513098,1776198643611,-150.9226606,9.056e-05,2]
[420513099,1776198643620,-471.13773177,9.11e-05,2]
[420513100,1776198643635,-641.66193093,9.11e-05,2]
[420513101,1776198643649,-653.019462,9.249e-05,2]
[420513102,1776198643659,-245.29543045,9.296e-05,2]
[420513103,1776198643670,-500.0,9.33e-05,2]
[420513104,1776198643680,-2701.871211,9.38e-05,2]
[420513105,1776198643693,-505.68741874,9.401e-05,2]
[420513106,1776198643702,-160.0,9.418e-05,2]
[420513107,1776198643716,-2199.51728723,9.476e-05,2]
[420513119,1776198646769,-2497.58648379,9.476e-05,2]
[420513120,1776198646787,-503.08919654,9.57e-05,2]
[420513122,1776198646804,-2012.35678617,9.57e-05,2]
[420513124,1776198646827,-4523.27496611,9.57e-05,2]
[420513125,1776198646836,-193.08096446,9.57e-05,2]
[420513127,1776198646860,-483.92876014,9.57e-05,2]
[420513129,1776198646873,-399.74130543,9.57e-05,2]
[420513130,1776198646885,-1535.97373515,9.57e-05,2]
[420513132,1776198646908,-4351.00348246,9.57e-05,2]